[Event "EYTCC U18 Open 2019"]
[Site "Pardubice"]
[Date "2019.07.14"]
[Round "4.3"]
[White "Kosakowski, Jakub"]
[Black "Lazavik, Denis"]
[Result "1-0"]
[ECO "C91"]
[WhiteElo "2394"]
[BlackElo "2339"]
[Annotator "NA"]
[PlyCount "167"]
[EventDate "2019.07.11"]
[EventType "swiss"]
[EventCountry "CZE"]
[SourceTitle "playchess.com"]
[Source "ChessBase"]
[SourceQuality "1"]
[WhiteTeam "Poland"]
[BlackTeam "Belarus"]
[WhiteTeamCountry "POL"]
[BlackTeamCountry "BLR"]
[TimeControl "40/5400+30:1800+30"]

1. e4 {[%emt 0:00:00]} e5 {[%emt 0:00:00]} 2. Nf3 {[%emt 0:00:00]} Nc6 {[%emt 0:00:09]} 3. Bb5 {[%emt 0:00:30]} a6 {[%emt 0:00:25]} 4. Ba4 {[%emt 0:00:08]} Nf6 {[%emt 0:00:36]} 5. O-O {[%emt 0:00:09]} Be7 {[%emt 0:00:14]} 6. Re1 {[%emt 0:00:31]} b5 {[%emt 0:00:21]} 7. Bb3 {[%emt 0:00:04]} d6 {[%emt 0:00:09]} 8. c3 {[%emt 0:00:08]} O-O {[%emt 0:00:08]} 9. d4 {[%emt 0:01:12]} Bg4 {[%emt 0:00:30]} 10. d5 {[%emt 0:00:20]} Na5 {[%emt 0:01:50]} 11. Bc2 {[%emt 0:00:10]} c6 {[%emt 0:00:46]} 12. h3 {[%emt 0:00:19]} Bd7 {[%emt 0:07:51]} 13. Nxe5 {[%emt 0:00:11]} dxe5 {[%emt 0:03:31]} 14. d6 {[%emt 0:00:06]} h6 {[%emt 0:08:01]} 15. dxe7 {[%emt 0:00:21]} Qxe7 {[%emt 0:00:09]} 16. Nd2 {[%emt 0:01:17]} c5 {[%emt 0:10:36]} 17. Nf1 {[%emt 0:04:55]} Nb7 {[%emt 0:06:43]} 18. Be3 {[%emt 0:06:50]} c4 {[%emt 0:02:37]} 19. Ng3 {[%emt 0:02:55]} Nc5 {[%emt 0:04:37]} 20. Qf3 {[%emt 0:15:58]} Rfd8 {[%emt 0:15:29]} 21. Rad1 {[%emt 0:01:01]} Na4 {[%emt 0:03:08]} 22. Bc1 {[%emt 0:02:53]} Nc5 {[%emt 0:03:19]} 23. b4 {[%emt 0:08:48]} cxb3 {[%emt 0:01:10]} 24. axb3 {[%emt 0:00:05]} Be6 {[%emt 0:02:59]} 25. Nf5 {[%emt 0:00:41]} Bxf5 {[%emt 0:00:23]} 26. exf5 {[%emt 0:00:24]} Rxd1 {[%emt 0:01:50]} 27. Rxd1 {[%emt 0:00:17]} Rc8 {[%emt 0:01:34]} 28. Re1 {[%emt 0:08:39]} Ncd7 {[%emt 0:02:45]} 29. b4 {[%emt 0:05:11]} Qd6 {[%emt 0:04:02]} 30. Qg3 {[%emt 0:01:04]} Nh5 {[%emt 0:01:19]} 31. Qf3 {[%emt 0:01:07]} Nhf6 {[%emt 0:00:28]} 32. Qg3 {[%emt 0:30:20]} Nh5 {[%emt 0:05:25]} 33. Qe3 {[%emt 0:00:02]} Nhf6 {[%emt 0:01:29]} 34. Bb3 {[%emt 0:00:33]} e4 {[%emt 0:02:40]} 35. f3 {[%emt 0:05:09]} Re8 {[%emt 0:03:14]} 36. f4 {[%emt 0:01:05]} Qc6 {[%emt 0:01:29]} 37. Rd1 {[%emt 0:01:10]} Rc8 {[%emt 0:00:37]} 38. Bd2 {[%emt 0:03:28]} Nb6 {[%emt 0:02:23]} 39. Be1 {[%emt 0:00:30]} Nc4 {[%emt 0:01:08]} 40. Qd4 {[%emt 0:00:48]} Nb2 {[%emt 0:00:50]} 41. Ra1 {[%emt 0:01:10]} Nd3 {[%emt 0:04:25]} 42. Bd2 {[%emt 0:00:25]} Qc7 {[%emt 0:12:32]} 43. Rxa6 {[%emt 0:03:21]} Nxf4 {[%emt 0:01:29]} 44. Bxf4 {[%emt 0:07:53]} Qxf4 {[%emt 0:00:18]} 45. Bxf7+ {[%emt 0:00:09]} Kxf7 {[%emt 0:06:36]} 46. Rxf6+ {[%emt 0:00:18]} gxf6 {[%emt 0:00:12]} 47. Qd7+ {[%emt 0:00:06]} Kf8 {[%emt 0:00:45]} 48. Qxc8+ {[%emt 0:00:07]} Kf7 {[%emt 0:00:33]} 49. Qe6+ {[%emt 0:00:09]} Kg7 {[%emt 0:00:05]} 50. Qe7+ {[%emt 0:00:05]} Kg8 {[%emt 0:00:04]} 51. Qe8+ {[%emt 0:00:04]} Kg7 {[%emt 0:00:28]} 52. Qg6+ {[%emt 0:00:05]} Kf8 {[%emt 0:00:06]} 53. Qxf6+ {[%emt 0:00:04]} Ke8 {[%emt 0:00:06]} 54. Qc6+ {[%emt 0:01:47]} Kf7 {[%emt 0:02:55]} 55. Qd7+ {[%emt 0:01:38]} Kf8 {[%emt 0:00:51]} 56. Qxb5 {[%emt 0:02:52]} Qc1+ {[%emt 0:00:47]} 57. Kf2 {[%emt 0:00:05]} Qd2+ {[%emt 0:01:39]} 58. Qe2 {[%emt 0:00:11]} Qf4+ {[%emt 0:00:21]} 59. Kg1 {[%emt 0:00:05]} Qc1+ {[%emt 0:00:10]} 60. Kh2 {[%emt 0:00:07]} e3 {[%emt 0:00:33]} 61. Kg3 {[%emt 0:01:18]} Qxc3 {[%emt 0:00:43]} 62. Kf3 {[%emt 0:00:05]} Qxb4 {[%emt 0:00:36]} 63. Qxe3 {[%emt 0:00:10]} Qb7+ {[%emt 0:00:13]} 64. Kg3 {[%emt 0:00:38]} Qc7+ {[%emt 0:01:08]} 65. Qf4 {[%emt 0:00:06]} Qc3+ {[%emt 0:00:35]} 66. Kh2 {[%emt 0:00:20]} Qf6 {[%emt 0:00:07]} 67. Qb8+ {[%emt 0:00:34]} Kf7 {[%emt 0:00:55]} 68. Qc7+ {[%emt 0:00:06]} Kf8 {[%emt 0:00:41]} 69. Qc8+ {[%emt 0:00:06]} Kg7 {[%emt 0:00:28]} 70. Qd7+ {[%emt 0:01:08]} Kh8 {[%emt 0:00:08]} 71. Qe6 {[%emt 0:12:18]} Qg5 {[%emt 0:00:44]} 72. Qe5+ {[%emt 0:04:28]} Kh7 {[%emt 0:00:04]} 73. Qc7+ {[%emt 0:00:14]} Kh8 {[%emt 0:00:12]} 74. Qc3+ {[%emt 0:02:38]} Kh7 {[%emt 0:00:06]} 75. Qe5 {[%emt 0:00:05]} Qc1 {[%emt 0:01:22]} 76. Qe7+ {[%emt 0:01:46]} Kh8 {[%emt 0:00:58]} 77. Qd6 {[%emt 0:00:15]} Kh7 {[%emt 0:00:24]} 78. Qe7+ {[%emt 0:01:00]} Kh8 {[%emt 0:00:08]} 79. Kg3 {[%emt 0:00:21]} Qd2 {[%emt 0:01:53]} 80. Qe5+ {[%emt 0:00:33]} Kh7 {[%emt 0:00:21]} 81. Qc7+ {[%emt 0:00:25]} Kh8 {[%emt 0:00:24]} 82. Qf4 {[%emt 0:00:17]} Qe1+ {[%emt 0:00:48]} 83. Kh2 {[%emt 0:00:20]} Kg7 {[%emt 0:00:28]} 84. Qg3+ {[%emt 0:00:04]} 1-0

[Event "EYTCC U18 Open 2019"]
[Site "Pardubice"]
[Date "2019.07.14"]
[Round "4.4"]
[White "Runets, Ivan"]
[Black "Chylewski, Patryk"]
[Result "1-0"]
[ECO "E32"]
[WhiteElo "2239"]
[BlackElo "2376"]
[Annotator "NA"]
[PlyCount "81"]
[EventDate "2019.07.11"]
[EventType "swiss"]
[EventCountry "CZE"]
[SourceTitle "playchess.com"]
[Source "ChessBase"]
[SourceQuality "1"]
[WhiteTeam "Belarus"]
[BlackTeam "Poland"]
[WhiteTeamCountry "BLR"]
[BlackTeamCountry "POL"]
[TimeControl "40/5400+30:1800+30"]

1. d4 {[%emt 0:00:34]} Nf6 {[%emt 0:00:00]} 2. c4 {[%emt 0:00:17]} e6 {[%emt 0:00:00]} 3. Nc3 {[%emt 0:00:06]} Bb4 {[%emt 0:00:00]} 4. Qc2 {[%emt 0:00:10]} O-O {[%emt 0:00:32]} 5. Bg5 {[%emt 0:00:28]} b6 {[%emt 0:05:08]} 6. a3 {[%emt 0:05:37]} Bxc3+ {[%emt 0:00:08]} 7. Qxc3 {[%emt 0:00:04]} Bb7 {[%emt 0:00:10]} 8. e3 {[%emt 0:00:51]} d6 {[%emt 0:00:19]} 9. f3 {[%emt 0:07:19]} Nbd7 {[%emt 0:00:21]} 10. Bd3 {[%emt 0:00:43]} h6 {[%emt 0:00:41]} 11. Bh4 {[%emt 0:00:33]} Rc8 {[%emt 0:00:45]} 12. Ne2 {[%emt 0:03:10]} c5 {[%emt 0:00:47]} 13. Qb3 {[%emt 0:02:25]} d5 {[%emt 0:17:46]} 14. cxd5 {[%emt 0:09:11]} Bxd5 {[%emt 0:02:33]} 15. Qa4 {[%emt 0:07:12]} a6 {[%emt 0:05:08]} 16. O-O {[%emt 0:04:54]} Bb7 {[%emt 0:11:27]} 17. Rac1 {[%emt 0:06:30]} b5 {[%emt 0:03:09]} 18. Qd1 {[%emt 0:00:38]} Qe7 {[%emt 0:02:46]} 19. dxc5 {[%emt 0:07:10]} Nxc5 {[%emt 0:00:43]} 20. b4 {[%emt 0:00:14]} Ncd7 {[%emt 0:07:19]} 21. e4 {[%emt 0:04:00]} Rxc1 {[%emt 0:06:41]} 22. Qxc1 {[%emt 0:07:47]} Rc8 {[%emt 0:02:16]} 23. Qa1 {[%emt 0:02:44]} Qd6 {[%emt 0:07:49]} 24. Rd1 {[%emt 0:02:20]} e5 {[%emt 0:01:28]} 25. Bf2 {[%emt 0:00:23]} Qe6 {[%emt 0:01:43]} 26. a4 {[%emt 0:06:09]} Bc6 {[%emt 0:03:23]} 27. Nc3 {[%emt 0:03:41]} Rb8 {[%emt 0:03:49]} 28. axb5 {[%emt 0:02:55]} axb5 {[%emt 0:00:12]} 29. Bf1 {[%emt 0:02:30]} Qb3 {[%emt 0:02:30]} 30. Rb1 {[%emt 0:00:50]} Qe6 {[%emt 0:01:41]} 31. Rd1 {[%emt 0:03:21]} Qb3 {[%emt 0:00:07]} 32. Rd6 {[%emt 0:01:54]} Ra8 {[%emt 0:01:52]} 33. Qc1 {[%emt 0:00:13]} Bb7 {[%emt 0:02:57]} 34. Nxb5 {[%emt 0:01:08]} Qxb4 {[%emt 0:02:10]} 35. Qc7 {[%emt 0:01:48]} Ra1 {[%emt 0:00:52]} 36. Qxb7 {[%emt 0:00:10]} Ne8 {[%emt 0:04:32]} 37. Qxd7 {[%emt 0:05:29]} Qb1 {[%emt 0:04:00]} 38. Qxe8+ {[%emt 0:00:41]} Kh7 {[%emt 0:00:02]} 39. h3 {[%emt 0:00:39]} Qxf1+ {[%emt 0:00:05]} 40. Kh2 {[%emt 0:00:02]} Qxf2 {[%emt 0:00:56]} 41. Qxf7 {[%emt 0:30:08]} 1-0

[Event "EYTCC U18 Open 2019"]
[Site "Pardubice"]
[Date "2019.07.14"]
[Round "4.5"]
[White "Gavrilescu, David"]
[Black "Gazik, Viktor"]
[Result "0-1"]
[ECO "B30"]
[WhiteElo "2473"]
[BlackElo "2525"]
[Annotator "ChessBase"]
[PlyCount "98"]
[EventDate "2019.07.11"]
[EventType "swiss"]
[EventCountry "CZE"]
[SourceTitle "playchess.com"]
[Source "ChessBase"]
[SourceQuality "1"]
[WhiteTeam "Romania"]
[BlackTeam "Slovakia"]
[WhiteTeamCountry "ROU"]
[BlackTeamCountry "SVK"]
[TimeControl "40/5400+30:1800+30"]

1. e4 {[%emt 0:00:00]} c5 {[%emt 0:00:24]} 2. Nf3 {[%emt 0:00:13]} Nc6 {[%emt 0:00:11]} 3. Bb5 {[%emt 0:00:44]} e6 {[%emt 0:00:08]} 4. Bxc6 {[%emt 0:01:54]} bxc6 {[%emt 0:01:50]} 5. b3 {[%emt 0:00:37]} d6 {[%emt 0:23:55]} 6. e5 {[%emt 0:05:06]} d5 {[%emt 0:10:12]} 7. O-O {[%emt 0:02:43]} f5 {[%emt 0:06:09]} 8. d3 {[%emt 0:10:19]} Ba6 {[%emt 0:08:31]} 9. Nc3 {[%emt 0:04:08]} d4 {[%emt 0:06:12]} 10. Ne2 {[%emt 0:08:06]} Be7 {[%emt 0:03:32]} 11. Nf4 {[%emt 0:04:24]} Bc8 {[%emt 0:04:03]} 12. h4 {[%emt 0:09:07]} Bxh4 {[%emt 0:05:49]} 13. Nxh4 {[%emt 0:01:43]} Qxh4 {[%emt 0:00:02]} 14. g3 {[%emt 0:11:10]} Qe7 {[%emt 0:03:16]} 15. Qh5+ {[%emt 0:02:33]} Kd7 {[%emt 0:02:24]} 16. c3 {[%emt 0:01:41]} Nh6 {[%emt 0:07:15]} 17. Ba3 {[%emt 0:02:29]} Qf7 {[%emt 0:02:34]} 18. Qh1 {[%emt 0:05:38]} Ng4 {[%emt 0:01:11]} 19. Rac1 {[%emt 0:00:37]} Bb7 {[%emt 0:02:05]} 20. cxd4 {[%emt 0:04:13]} cxd4 {[%emt 0:00:08]} 21. Rc5 {[%emt 0:00:43]} Rac8 {[%emt 0:05:45]} 22. Rfc1 {[%emt 0:02:53]} h5 {[%emt 0:00:02]} 23. R5c4 {[%emt 0:15:55]} Nxe5 {[%emt 0:01:47]} 24. Rxd4+ {[%emt 0:00:18]} Ke8 {[%emt 0:00:00]} 25. Bc5 {[%emt 0:01:45]} Rh6 {[%emt 0:01:47]} 26. Re1 {[%emt 0:01:10]} Nd7 {[%emt 0:00:48]} 27. b4 {[%emt 0:02:46]} h4 {[%emt 0:02:47]} 28. Rd6 {[%emt 0:00:23]} Nf8 {[%emt 0:00:19]} 29. Qf3 {[%emt 0:00:33]} hxg3 {[%emt 0:00:28]} 30. fxg3 {[%emt 0:00:05]} Rc7 {[%emt 0:00:34]} 31. Qe3 {[%emt 0:00:53]} Bc8 {[%emt 0:00:00]} 32. Qe5 {[%emt 0:00:36]} g5 {[%emt 0:00:40]} 33. Ng2 {[%emt 0:00:31]} Bd7 {[%emt 0:00:28]} 34. Rd4 {[%emt 0:00:29]} Rb7 {[%emt 0:00:31]} 35. Qe3 {[%emt 0:00:29]} Qh5 {[%emt 0:00:26]} 36. Bxf8 {[%emt 0:00:21]} Kxf8 {[%emt 0:00:06]} 37. Rd6 {[%emt 0:00:36]} f4 {[%emt 0:01:03]} 38. gxf4 Qh2+ {[%emt 0:01:03]} 39. Kf2 {[%emt 0:00:36]} Rf6 {[%emt 0:00:11]} 40. Rd4 {[%emt 0:00:30]} c5 {[%emt 0:00:51]} 41. Rc4 {[%emt 0:13:15]} Bb5 {[%emt 0:14:02]} 42. Re4 {[%emt 0:04:27]} gxf4 {[%emt 0:07:45]} 43. Qxc5+ {[%emt 0:05:16]} Kg7 {[%emt 0:00:19]} 44. Qd4 {[%emt 0:09:33]} Bc6 {[%emt 0:05:43]} 45. Rg1 {[%emt 0:00:27]} Bxe4 {[%emt 0:00:10]} 46. Qxe4 {[%emt 0:00:05]} Rc7 {[%emt 0:00:02]} 47. Kf1 {[%emt 0:00:25]} f3 {[%emt 0:01:42]} 48. Nh4+ {[%emt 0:00:18]} Qxg1+ {[%emt 0:00:07]} 49. Kxg1 {[%emt 0:00:04]} f2+ {[%emt 0:00:04]} 0-1

[Event "EYTCC U18 Open 2019"]
[Site "Pardubice"]
[Date "2019.07.14"]
[Round "4.6"]
[White "Pechac, Jergus"]
[Black "Stoleriu, George"]
[Result "1-0"]
[ECO "C18"]
[WhiteElo "2469"]
[BlackElo "2360"]
[Annotator "ChessBase"]
[PlyCount "175"]
[EventDate "2019.07.11"]
[EventType "swiss"]
[EventCountry "CZE"]
[SourceTitle "playchess.com"]
[Source "ChessBase"]
[SourceQuality "1"]
[WhiteTeam "Slovakia"]
[BlackTeam "Romania"]
[WhiteTeamCountry "SVK"]
[BlackTeamCountry "ROU"]
[TimeControl "40/5400+30:1800+30"]

1. d4 {[%emt 0:00:00]} e6 {[%emt 0:00:00]} 2. e4 {[%emt 0:00:00]} d5 {[%emt 0:00:06]} 3. Nc3 {[%emt 0:00:00]} Bb4 {[%emt 0:03:06]} 4. e5 {[%emt 0:00:00]} c5 {[%emt 0:00:03]} 5. a3 {[%emt 0:00:00]} Bxc3+ {[%emt 0:00:06]} 6. bxc3 {[%emt 0:00:06]} Qc7 {[%emt 0:00:07]} 7. Qg4 {[%emt 0:00:41]} f6 {[%emt 0:00:17]} 8. Qg3 {[%emt 0:04:31]} Qf7 {[%emt 0:15:45]} 9. Nf3 {[%emt 0:00:43]} c4 {[%emt 0:00:11]} 10. a4 {[%emt 0:00:42]} Nc6 {[%emt 0:05:34]} 11. Be2 {[%emt 0:00:23]} Nge7 {[%emt 0:00:35]} 12. O-O {[%emt 0:03:53]} Qg6 {[%emt 0:06:29]} 13. Ba3 {[%emt 0:09:24]} Nf5 {[%emt 0:28:58]} 14. Qf4 {[%emt 0:01:37]} Qh6 {[%emt 0:04:18]} 15. Qxh6 {[%emt 0:00:57]} Nxh6 {[%emt 0:00:04]} 16. exf6 {[%emt 0:00:27]} gxf6 {[%emt 0:00:03]} 17. Nh4 {[%emt 0:00:11]} Ne7 {[%emt 0:01:51]} 18. Rab1 {[%emt 0:01:23]} Ng6 {[%emt 0:06:13]} 19. Bh5 {[%emt 0:01:52]} Rg8 {[%emt 0:00:19]} 20. g3 {[%emt 0:00:37]} Kd7 {[%emt 0:02:24]} 21. Ng2 {[%emt 0:00:38]} Nf5 {[%emt 0:01:25]} 22. Rfe1 {[%emt 0:01:05]} Nd6 {[%emt 0:01:49]} 23. Bf3 {[%emt 0:00:59]} Rb8 {[%emt 0:03:37]} 24. h4 {[%emt 0:00:14]} f5 {[%emt 0:06:13]} 25. a5 {[%emt 0:06:43]} Ne4 {[%emt 0:05:42]} 26. Bxe4 {[%emt 0:00:14]} fxe4 {[%emt 0:00:04]} 27. Bc5 {[%emt 0:00:24]} Ra8 {[%emt 0:00:03]} 28. Re3 {[%emt 0:03:48]} e5 {[%emt 0:02:57]} 29. h5 {[%emt 0:00:52]} exd4 {[%emt 0:00:03]} 30. cxd4 {[%emt 0:00:25]} Nh8 {[%emt 0:00:40]} 31. Nf4 {[%emt 0:02:11]} Kc6 {[%emt 0:00:06]} 32. Ree1 {[%emt 0:07:40]} Nf7 {[%emt 0:00:59]} 33. Rb4 {[%emt 0:03:31]} Ng5 {[%emt 0:00:06]} 34. Kg2 {[%emt 0:01:01]} Nf3 {[%emt 0:00:12]} 35. Reb1 {[%emt 0:01:14]} Nd2 {[%emt 0:01:27]} 36. Rd1 {[%emt 0:00:45]} Nf3 {[%emt 0:00:04]} 37. Rdb1 {[%emt 0:01:30]} Nd2 {[%emt 0:00:04]} 38. R1b2 {[%emt 0:00:22]} Rg7 {[%emt 0:03:58]} 39. Rb5 {[%emt 0:00:41]} c3 {[%emt 0:01:20]} 40. R2b4 {[%emt 0:00:11]} Bg4 {[%emt 0:01:21]} 41. Nxd5 {[%emt 0:37:26]} Bf3+ {[%emt 0:05:24]} 42. Kg1 {[%emt 0:00:00]} Be2 {[%emt 0:04:47]} 43. Ne7+ {[%emt 0:00:00]} Rxe7 {[%emt 0:00:40]} 44. d5+ {[%emt 0:00:00]} Kxd5 {[%emt 0:00:53]} 45. Bxe7+ {[%emt 0:00:00]} Bxb5 {[%emt 0:00:02]} 46. Rxb5+ {[%emt 0:00:00]} Ke6 {[%emt 0:05:59]} 47. Rxb7 {[%emt 0:00:00]} Nf3+ {[%emt 0:00:09]} 48. Kf1 {[%emt 0:00:00]} Nd4 {[%emt 0:00:09]} 49. Bg5 {[%emt 0:00:00]} Kf5 {[%emt 0:05:07]} 50. Bf4 {[%emt 0:00:00]} Rd8 {[%emt 0:01:18]} 51. Rf7+ {[%emt 0:00:00]} Kg4 {[%emt 0:02:14]} 52. Be5 {[%emt 0:00:00]} Nf5 {[%emt 0:05:29]} 53. Bxc3 {[%emt 0:00:00]} Rc8 {[%emt 0:00:05]} 54. Be1 {[%emt 0:00:00]} Rxc2 {[%emt 0:00:15]} 55. h6 {[%emt 0:02:32]} a6 {[%emt 0:02:35]} 56. Rxh7 {[%emt 0:00:28]} e3 {[%emt 0:01:12]} 57. Kg2 {[%emt 0:16:32]} exf2 {[%emt 0:01:52]} 58. Bxf2 {[%emt 0:00:06]} Rc6 {[%emt 0:00:27]} 59. Rb7 {[%emt 0:01:29]} Rxh6 {[%emt 0:00:53]} 60. Rb4+ {[%emt 0:00:58]} Kg5 {[%emt 0:00:12]} 61. g4 {[%emt 0:00:22]} Nh4+ {[%emt 0:00:37]} 62. Kg3 {[%emt 0:00:23]} Re6 {[%emt 0:00:36]} 63. Rf4 {[%emt 0:11:50]} Ng6 {[%emt 0:00:34]} 64. Rf5+ {[%emt 0:00:19]} Kh6 {[%emt 0:00:01]} 65. Rh5+ {[%emt 0:00:13]} Kg7 {[%emt 0:00:01]} 66. Bd4+ {[%emt 0:00:11]} Kg8 {[%emt 0:01:10]} 67. Kf3 {[%emt 0:00:30]} Kf7 {[%emt 0:01:14]} 68. Rh7+ {[%emt 0:00:13]} Kg8 {[%emt 0:00:11]} 69. Rg7+ {[%emt 0:00:22]} Kf8 {[%emt 0:00:03]} 70. Ra7 {[%emt 0:00:07]} Ke8 {[%emt 0:01:34]} 71. Bb6 {[%emt 0:01:13]} Ne5+ {[%emt 0:00:34]} 72. Kf4 {[%emt 0:00:07]} Nc4 {[%emt 0:00:32]} 73. Rxa6 {[%emt 0:00:09]} Kf7 {[%emt 0:00:26]} 74. Ra7+ {[%emt 0:00:25]} Kg6 {[%emt 0:00:03]} 75. Bd4 {[%emt 0:00:08]} Nd6 {[%emt 0:00:46]} 76. Rg7+ {[%emt 0:00:13]} Kh6 {[%emt 0:00:01]} 77. g5+ {[%emt 0:00:09]} Kh5 {[%emt 0:00:00]} 78. Rh7+ {[%emt 0:00:07]} Kg6 {[%emt 0:00:05]} 79. Rh6+ {[%emt 0:00:05]} Kf7 {[%emt 0:00:02]} 80. Rxe6 {[%emt 0:00:11]} Kxe6 {[%emt 0:00:01]} 81. a6 {[%emt 0:00:09]} Nb5 {[%emt 0:00:49]} 82. a7 {[%emt 0:00:13]} Nc7 {[%emt 0:00:01]} 83. Ke4 {[%emt 0:00:18]} Kd7 {[%emt 0:00:33]} 84. g6 {[%emt 0:00:12]} Ke6 {[%emt 0:00:46]} 85. Bb6 {[%emt 0:00:06]} Na8 {[%emt 0:00:06]} 86. Ba5 {[%emt 0:00:07]} Kf6 {[%emt 0:00:04]} 87. Kd5 {[%emt 0:00:04]} Kxg6 {[%emt 0:00:05]} 88. Ke4 1-0